Cogmind - Beta 13 @@@ ROGUE MODE // 2024.05.05 @ 03:03:55 Player: GregoriusTechneticies Result: Destroyed by Y-45 Defender with Beam Rifle Performance ------------- Evolutions (2) 1000 Regions Visited (3) 600 Robots Destroyed (61) 305 Value Destroyed (1272) 1272 Prototype IDs (1) 20 Alien Tech Used (0) 0 Bonus (0) 0 TOTAL SCORE: 3197 Bonus ------- None Cogmind --------- Core Integrity 0/550 Matter 51/300 Energy 173/275 System Corruption 4% Temperature Cool (20) Movement Core (150) Ox2 Location -8/Materials Parts ------- > --- POWER (1) -------- Deuterium Engine > --- PROPULSION (2) --- (None) > --- UTILITY (6) ------ Advanced Visual Processing Unit Improved Signal Interpreter Improved Terrain Scan Processor > --- WEAPON (2) ------- (None) > --- INVENTORY (5) ---- Medium Matter Pod (100) Weight Redist. System Weight Redist. System Seismic Detector Flail Peak State ------------ > --- POWER ------------ Light Deuterium Engine > --- PROPULSION ------- Light Treads Light Treads > --- UTILITY ---------- Advanced Visual Processing Unit Improved Sensor Array Improved Signal Interpreter Improved Terrain Scanner Improved Terrain Scan Processor Seismic Detector > --- WEAPON ----------- Heavy Assault Rifle Gauss Rifle > --- INVENTORY -------- Medium Matter Pod Weight Redist. System Weight Redist. System Seismic Detector Flail [Rating: 27] Favorites ----------- Power Light Ion Engine Engine Light Ion Engine Propulsion Light Treads Treads Light Treads Utility Seismic Detector Device Seismic Detector Processor Terrain Scan Processor Protection Hardened Medium Armor Plating Weapon Assault Rifle Energy Gun Small Laser Ballistic Gun Assault Rifle Impact Weapon Flail Slashing Weapon Mining Claw Build | -11 -10 -9 -8 ------- Run | Yrd Mat Mat Mat Slots Evolved 4 | . . 2 2 Power . | . . . . Propulsion . | . . . . Utility 4 | . . 2 2 Weapon . | . . . . Parts Attached 49 | 6 1 24 18 Power 6 | . . 3 3 Engine 6 | . . 3 3 Core . | . . . . Reactor . | . . . . Propulsion 7 | 2 . 3 2 Treads 7 | 2 . 3 2 Leg . | . . . . Wheel . | . . . . Hover . | . . . . Flight . | . . . . Utility 18 | 2 1 7 8 Device 10 | 2 1 5 2 Storage . | . . . . Processor 7 | . . 2 5 Hackware . | . . . . Protection 1 | . . . 1 Artifact . | . . . . Weapon 18 | 2 . 11 5 Energy Gun 1 | . . 1 . Energy Cannon . | . . . . Ballistic Gun 15 | 2 . 8 5 Ballistic Cannon . | . . . . Launcher . | . . . . Special Weapon . | . . . . Impact Weapon 1 | . . 1 . Slashing Weapon 1 | . . 1 . Piercing Weapon . | . . . . Special Melee Weapon . | . . . . Unidentified Prototypes 1 | . . 1 . Parts Lost 13 | . . 4 9 Power 1 | . . 1 . Propulsion 4 | . . 2 2 Utility 3 | . . . 3 Weapon 5 | . . 1 4 Highest Loss Streak 7 | . . 2 7 To Critical Strikes . | . . . . Average Slot Usage (%) 90 | . 85 93 89 Engine 6 | . . 8 5 Treads 19 | . 28 19 16 Device 22 | . 28 22 21 Processor 21 | . . 21 27 Ballistic Gun 20 | . 28 21 17 Naked Turns . | . . . . Heaviest Build 20 | 5 5 13 20 Greatest Support 40 | 3 3 9 40 Greatest Overweight (x) 4 | 1 1 4 2 Average Overweight (x) 1 | . 1 2 . Largest Inventory Capacity 5 | 5 5 5 5 Average Capacity 5 | 5 5 5 5 Most Carried 5 | 5 5 5 5 Average Carried 4 | 2 4 4 4 Final Capacity 5 | 5 5 5 5 Final Carried 5 | 4 5 5 5 Class Distribution -------------------- 47% | Scavenger-Skirmisher 27% | Skirmisher 24% | Mutant Dominant Class ---------------- Mutant | -10/Materials Skirmisher | -9/Materials Scavenger-Skirmisher | -8/Materials Resources | -11 -10 -9 -8 ----------- Run | Yrd Mat Mat Mat Matter Collected 1529 | 351 50 617 511 Remotely . | . . . . Salvage Created 1871 | 221 50 717 883 Parts 151 | 19 5 53 74 Haulers Intercepted 2 | . 1 . 1 Recyclers Shooed 2 | . . 1 1 Parts Field Recycled . | . . . . Retrieved Matter . | . . . . Parts Self-Destructed . | . . . . Prevented . | . . . . Kills | -11 -10 -9 -8 ------- Run | Yrd Mat Mat Mat Combat Hostiles Destroyed 33 | . . 19 14 Guns 33 | . . 19 14 Classes Destroyed 12 | 3 1 6 2 Worker 6 | 2 . 1 3 Builder 5 | . . 1 4 Tunneler 8 | 5 . 1 2 Hauler 2 | . 1 . 1 Recycler 1 | 1 . . . Mechanic 2 | . . 1 1 Operator 1 | . . . 1 Watcher 3 | . . 1 2 Swarmer 10 | . . 7 3 Grunt 16 | . . 10 6 Sentry 6 | . . 2 4 Hunter 1 | . . . 1 Best Kill Streak 7 | 7 1 4 4 Combat Bots Only 4 | . . 4 4 Max Kills in Single Turn 1 | 1 1 1 1 Gunslinging . | . . . . Exploded . | . . . . Melee . | . . . . Uniques/NPCs Destroyed . | . . . . Combat | -11 -10 -9 -8 -------- Run | Yrd Mat Mat Mat Hostile Shots Fired 282 | . 1 124 157 Missed 75 | . . 37 38 Damage Taken 2551 | . 11 844 1696 Core 730 | . . 167 563 Absorbed by Shields . | . . . . Core Remaining (%) 86 | 100 100 58 . Volleys Fired 179 | 24 6 69 80 Largest 2 | 2 2 2 2 Hottest 60 | 40 40 60 51 Shots Fired 343 | 48 12 131 152 Gun 343 | 48 12 131 152 Cannon . | . . . . Launcher . | . . . . Special . | . . . . Kinetic 341 | 48 12 129 152 Thermal 2 | . . 2 . Explosive . | . . . . Electromagnetic . | . . . . Robot Hit Streak 10 | 5 9 10 9 Robot Miss Streak 5 | 3 2 4 5 Penetration Max . | . . . . Secondary Targets 3 | . . 2 1 Max Gunslinging Chain 1 | . . 1 1 Shots Hit Robots 232 | 30 9 93 100 Core Hits 95 | 11 2 38 44 Critical Kills 1 | . . 1 . Critical Parts Destroyed 1 | . . 1 . Critical Strikes 2 | . . 2 . Destroy 2 | . . 2 . Melee Attacks 6 | . . 6 . Impact 2 | . . 2 . Slashing 4 | . . 4 . Piercing . | . . . . Sneak Attacks . | . . . . Combat Hostiles . | . . . . Follow-up Attacks . | . . . . Damage Inflicted 3199 | 313 95 1197 1594 Guns 3196 | 313 92 1197 1594 Cannons . | . . . . Explosions . | . . . . Melee . | . . . . Ramming 3 | . 3 . . Kinetic 3184 | 313 92 1185 1594 Thermal 12 | . . 12 . Explosive . | . . . . Electromagnetic . | . . . . Impact . | . . . . Slashing . | . . . . Piercing . | . . . . Highest Corruption 4 | . . . 4 Average Corruption 3 | . . . 3 Corruption Purged . | . . . . Corruption Blocked . | . . . . Effects 11 | . . . 11 Message Errors 4 | . . . 4 Matter Fused 3 | . . . 3 Data Loss (minor) 1 | . . . 1 Misfires 1 | . . . 1 Alerts 1 | . . . 1 Weapon Failures 1 | . . . 1 Overload Shots . | . . . . Overflow Damage . | . . . . Projectiles . | . . . . Explosions . | . . . . Melee . | . . . . Knockbacks . | . . . . Impact . | . . . . Kinetic . | . . . . Secondary . | . . . . Self-Inflicted Damage 1 | . 1 . . Shots . | . . . . Rammed 1 | . 1 . . Targets Rammed 1 | . 1 . . Kicked . | . . . . Crushed . | . . . . Highest Temperature 58 | . . . 58 Average Temperature 15 | . . . 15 Received Heat Transfer 1263 | . 6 249 1008 Siege Activations . | . . . . Robots Corrupted . | . . . . Combat Hostiles . | . . . . Parts Fried . | . . . . Impact Corruptions . | . . . . Robots Melted . | . . . . Combat Hostiles . | . . . . Parts Melted . | . . . . Heat Transferred 25 | . . 25 . Parts Sabotaged . | . . . . Parts Stolen . | . . . . Parts Stripped . | . . . . Power Chain Reactions . | . . . . Alert | -11 -10 -9 -8 ------- Run | Yrd Mat Mat Mat Peak Influence 356 | 40 62 232 356 Initial 59 | . 26 26 59 Average 142 | 14 30 133 211 Maximum Alert Level 1 | . . 1 1 Low Security (%) 68 | 100 100 84 33 Level 1 31 | . . 15 66 Level 2 . | . . . . Level 3 . | . . . . Level 4 . | . . . . Level 5 . | . . . . High Security . | . . . . Max Security . | . . . . Squads Dispatched 9 | . 2 4 3 Investigation 6 | . 2 3 1 Extermination . | . . . . Reinforcement 3 | . . 1 2 Assault . | . . . . Garrison . | . . . . Intercept . | . . . . Searches Triggered . | . . . . Construction Impeded . | . . . . Haulers Reinforced . | . . . . Active Scanning Responses . | . . . . Cargo Convoy Interrupts . | . . . . Stealth | -11 -10 -9 -8 --------- Run | Yrd Mat Mat Mat Distress Signals 11 | . . 4 7 Communications Jammed . | . . . . Distress Signals . | . . . . Times Spotted 62 | . 3 28 31 Peak Tracking Total 9 | . 3 6 9 Tactical Retreats . | . . . . Traps | -11 -10 -9 -8 ------- Run | Yrd Mat Mat Mat Traps Triggered 5 | . 1 1 3 Indirectly . | . . . . Trap Hack Attempts . | . . . . Triggered . | . . . . Disarmed . | . . . . Reprogrammed . | . . . . Reused . | . . . . Traps Extracted . | . . . . Installed . | . . . . Triggered . | . . . . Machines | -11 -10 -9 -8 ---------- Run | Yrd Mat Mat Mat Machines Disabled 2 | . . 1 1 Max in Single Turn 1 | . . 1 1 Machines Repaired . | . . . . Machines Dismantled . | . . . . Machines Sabotaged . | . . . . Overloaded Fab Kills . | . . . . Hacking | -11 -10 -9 -8 --------- Run | Yrd Mat Mat Mat Machines Accessed 6 | . 2 3 1 Terminals 6 | . 2 3 1 Fabricators . | . . . . Repair Stations . | . . . . Recycling Units . | . . . . Scanalyzers . | . . . . Garrison Access . | . . . . Total Hacks 23 | . 5 13 5 Successful 8 | . 1 6 1 Failed 15 | . 4 7 4 Catastrophic 3 | . . 2 1 Database Lockouts . | . . . . Manual 22 | . 5 12 5 Terminals 23 | . 5 13 5 Fabricators . | . . . . Repair Stations . | . . . . Recycling Units . | . . . . Scanalyzers . | . . . . Garrison Access . | . . . . Terminal Hacks 4 | . . 4 . Robot Analysis 1 | . . 1 . Level Access Points 1 | . . 1 . Terminal Index 1 | . . 1 . Unreport Threat 1 | . . 1 . Fabricator Hacks . | . . . . Repair Station Hacks . | . . . . Recycling Unit Hacks . | . . . . Scanalyzer . | . . . . Garrison Access Hacks . | . . . . Unauthorized Hacks 4 | . 1 2 1 Terminals 4 | . 1 2 1 Botnet 4 | . 1 2 1 Fabricators . | . . . . Repair Stations . | . . . . Recycling Units . | . . . . Scanalyzers . | . . . . Garrison Access . | . . . . Data Cores Recovered . | . . . . Used . | . . . . Hacking Detections 6 | . 2 3 1 Full Trace Events 4 | . 1 2 1 Feedback Events . | . . . . Feedback Blocked . | . . . . Robot Schematics Acquired . | . . . . Robots Built . | . . . . Authchips . | . . . . Time . | . . . . Total Robot Build Rating . | . . . . Part Schematics Acquired . | . . . . Parts Built . | . . . . Authchips . | . . . . Time . | . . . . Total Part Build Rating . | . . . . Parts Repaired . | . . . . Time . | . . . . Parts Recycled . | . . . . Recycled Matter . | . . . . Retrieved Matter . | . . . . Retrieved Components . | . . . . Parts Scanalyzed . | . . . . Part Schematics Acquired . | . . . . Parts Damaged . | . . . . Bothacking | -11 -10 -9 -8 ------------ Run | Yrd Mat Mat Mat Used RIF Installer . | . . . . Robots Hacked . | . . . . Non-combat . | . . . . Combat . | . . . . Robot Hacks Applied . | . . . . Relay Couplers Released . | . . . . Fabnet Peak Effective % . | . . . . Robots Rewired . | . . . . Allies Hacked . | . . . . Hacks Repelled . | . . . . Allies | -11 -10 -9 -8 -------- Run | Yrd Mat Mat Mat Total Allies . | . . . . Largest Group . | . . . . Highest-Rated Group . | . . . . Highest-Rated Ally . | . . . . Total Orders . | . . . . Ally Attacks . | . . . . Total Damage . | . . . . Kills . | . . . . Allies Corrupted . | . . . . Allies Melted . | . . . . Intel | -11 -10 -9 -8 ------- Run | Yrd Mat Mat Mat Robot Analysis Total 1 | . . 1 . Derelict Logs Recovered . | . . . . Drone Launches . | . . . . Drone Recoveries . | . . . . Exploration | -11 -10 -9 -8 ------------- Run | Yrd Mat Mat Mat Turns Passed 1967 | 146 206 894 721 Spaces Moved 944 | 122 136 397 289 Core 715 | 122 136 397 60 Treads 229 | . . . 229 Legs . | . . . . Wheels . | . . . . Hover . | . . . . Flight . | . . . . Fastest Speed 50 | 50 100 50 50 Average Speed 129 | 52 100 150 146 Slowest Speed 250 | 100 100 250 160 Overloaded Moves . | . . . . Propulsion Burnouts . | . . . . Robots Hopped . | . . . . Cave-ins Triggered . | . . . . Exploration Rate (%) 25 | 4 26 34 38 Regions Visited 3 Branch Regions . Pre-discovered Areas . | . . . . Known Exits Taken 1 | . . 1 . Unknown Exits Taken 2 | 1 1 . . Scrap Searched . | . . . . Spaces Dug 3 | . . 3 . Terrain Destroyed 3 | . . 3 . Melee 3 | . . 3 . Projectile . | . . . . AOE . | . . . . Terrain Rammed . | . . . . Walls Destroyed . | . . . . Machines Disabled . | . . . . Actions | -11 -10 -9 -8 --------- Run | Yrd Mat Mat Mat Total 1364 | 161 199 559 445 Wait 131 | . 42 43 46 Move 942 | 121 136 396 289 Hop . | . . . . Pick Up 24 | 10 7 5 2 Fast Attach 14 | . . 7 7 Attach 9 | 6 . 2 1 Detach 1 | . . 1 . Swap 26 | . 1 15 10 Drop 32 | . 7 15 10 Fire 179 | 24 6 69 80 Melee 6 | . . 6 . Ram . | . . . . Kick . | . . . . Crush . | . . . . Escape Stasis . | . . . . Rewire . | . . . . Trap . | . . . . Miscellaneous . | . . . . Route ------- -11/Scrapyard -10/Materials -9/Materials (discovered 3 exits: *Mat x3) -8/Materials History --------- Turn | Location | Event 6 | -11/Scrapyard | Discovered new exit (range 14) 147 | -11/Scrapyard | Entered Materials 318 | -10/Materials | Build established: Mutant 348 | -10/Materials | Discovered new exit (range 4) 353 | -10/Materials | Entered another Materials area 353 | -9/Materials | Evolved 2 slots: Utility x2 670 | -9/Materials | Identified exit to Materials 715 | -9/Materials | Build established: Skirmisher 1247 | -9/Materials | Entered another Materials area 1247 | -8/Materials | Evolved 2 slots: Utility x2 1623 | -8/Materials | Build established: Scavenger-Skirmisher 1904 | -8/Materials | Core integrity fell below 50% 1930 | -8/Materials | Lost 7 parts (2n3u2w) 1960 | -8/Materials | Core integrity fell below 20% 1968 | -8/Materials | Destroyed by Y-45 Defender with Beam Rifle Last Messages --------------- 01918_ K-01 Serf collects debris. 01919_ G-47 Trooper destroyed. 01921_ Critical hit (Burn: +37). 01921_ G-47 Trooper destroyed. 01927_ Critical hit (Burn: +37). 01937_ K-01 Serf collects debris. 01937_ Critical hit (Burn: +37). 01938_ System corrupted: Matter fused (-8). 01941_ K-01 Serf collects debris. 01941_ G-47 Trooper destroyed. 01944_ K-01 Serf collects debris. 01947_ Critical hit (Burn: +37). 01947_ K-01 Serf collects debris. 01953_ Minigun destroyed. 01959_ Critical hit (Burn: +37). 01959_ Minigun destroyed. 01961_ Acquired Deuterium Engine. 01964_ System corrupted: Matter fused (-6). 01967_ Critical hit (Burn: +37). 01968_ K-01 Serf collects debris. Map ----- +----------------------------------------------------+ | ??????????#???###??## #### ? ? # # " | | ?????????????##?##### """ #??# # # | | ?????????????#??###?# """ #?##? ?? ? # ##### | | ???????????#????#???# """ ##?###?###### | | ???????????#?????##?# ####??####### | | ????????????????##########+############### | | ???????????#?#??????##### ##### | | ??????????????#?#??####?# # | | ?????????????##????#??### # | | ??????????##???#?#????### ############## # """ | | ????????????##???##??##?#* ##########?### # """ | | ???????????##???######### #####??####?## # """ | | ??????????##????##??????# ############## # | | ??????????????########### #####?# # | | ????? / #?##### # | | ??????????????###+## #### #####?# ####" | | ???????????? ?? ? ##??########## #??#### #??#" | | ?????????????#??? ## ######### # ##????# ##### | | ???????????????? ?##?# [# ##?##?# #?##? | | ?????????? ?????? ?#?# =!# ####### ##### | | ?????????????##??????# ! !*Y#!k !! | | ??????????????????#? # !gg% = | | ??????????????????##?# [ g"#= =[%= | | ????????????????#?##?#[ T# !########## | | ???????????????#?????# "# #???#???#? | | ?????????????????##??# ==@ # ##?#????#? ??? | | ???????????????##????###Y####### #???##?##? ?? | | ???????????????????? ? *%%????? ! #? ??????#?? ? | | ?????????????????????# * ??#?##%| #?? ?????#?? ? | | ?????????????????????# """ ????#* #?????????????? | | ?????????????????????# """ ????# #?? ?????#????? | | ?????????????????????# """ ??## #?????????????? | | ?????????????????????# ???# # ???? ???????? | | ?????????????????????########??# #?????????????? | | ???????????????????????????????# +?????????????? | | ???????????????????????????????# #?????????????? | | ???????????????????????????????# #?????????????? | | ???????????????????????????????##+##?????????????? | | ?????????????????????????????????????????????????? | | ?????????????????????????????????????????????????? | | ?????????????????????????????????????????????????? | | ?????????????????????????????????????????????????? | | ?????????????????????????????????????????????????? | | ?????????????????????????????????????????????????? | | ?????????????????????????????????????????????????? | | ?????????????????????????????????????????????????? | | ?????????????????????????????????????????????????? | | ?????????????????????????????????????????????????? | | ?????????????????????????????????????????????????? | | ?????????????????????????????????????????????????? | +----------------------------------------------------+ Best States ------------- Heat Dissipation 31 Energy Generation 14 Energy Capacity 280 Matter Stores 300 Matter Capacity 300 Sight Range 20 Robot Scan Range 15 Terrain Scan Range 16 Terrain Scan Density 110 Additional Mass Support 6 Armor Coverage 225 Evasion (%) 50 Recoil Reduction 2 Item Schematics ----------------- None Robot Schematics ------------------ None Fabricated ------------ Nothing Alien Tech Used ----------------- None Achievements -------------- None Challenges ------------ None Game ------ Seed GravityAntigravRedistributor Manual? 0 Play Time 00:27:30 Cumulative 59.0 hours Start 2024.05.05 @ 02:37:26 End 2024.05.05 @ 03:03:55 Sessions 1 Manual Loads 0 Difficulty Rogue Special Mode None Game No. 89 Rogue 74 Adventurer 0 Explorer 15 Win Type - Total 0 Types 0/0/0/0/0/0/0/0/0 Lore% 34 Gallery% 41 Achievement% 29 Wizard Run 0 Options --------- Layout 1 ASCII 0 Keyboard 0 Movement Mouse Keybinds 0 Fullscreen 1 Font 24/Smallcaps Map View 50x35 Zoom Use 0% Tactical HUD 1 Map Filters NONE Filters NONE Steam 1 RUN: 48db7a68-e5cd-4887-a7b3-29a731d9d8d7